bitfinex/quotes_SOLUSD_20251117
["timestamp","ask_amount","ask_price","bid_price","bid_amount"]
[1763392605992,12.50188421,138.94,138.93,0.1]
[1763392606507,9.78882769,138.93,138.86,0.1]
[1763392606704,12.50188421,138.88,138.86,0.1]
[1763392606907,18.12096,138.84,138.82,0.1]
[1763392607077,0.33,138.92,138.82,0.1]
[1763392607078,12.50188421,138.85,138.82,0.1]
[1763392607279,16.98188421,138.85,138.82,0.1]
[1763392607477,16.98188421,138.86,138.82,0.8]
[1763392607987,16.98188421,138.86,138.82,0.1]
[1763392607988,12.50188421,138.83,138.82,0.1]
[1763392608502,22.60096,138.87,138.82,0.1]
[1763392608701,12.50188421,138.86,138.82,0.1]
[1763392608904,22.60096,138.87,138.82,0.1]
[1763392609088,4.48,138.87,138.82,0.1]
[1763392609602,12.68143114,138.85,138.82,0.1]
[1763392609807,4.48,138.87,138.82,0.1]
[1763392610403,28.23978769,138.86,138.82,0.1]
[1763392610592,12.68143114,138.83,138.81,0.1]
[1763392610904,4.48,138.82,138.81,0.1]
[1763392611402,18.12096,138.86,138.81,0.1]
[1763392611403,17.16143114,138.85,138.81,0.1]
[1763392612086,17.16143114,138.85,138.81,12.78143114]
[1763392612406,10.01882769,138.88,138.82,0.7]
[1763392612407,12.68143114,138.88,138.82,0.7]
[1763392612705,4.48,138.89,138.82,0.7]
[1763392612706,12.68143114,138.87,138.82,13.38143114]
[1763392612892,12.68143114,138.87,138.81,0.1]
[1763392612893,12.68143114,138.86,138.81,12.78143114]
[1763392613090,12.68143114,138.82,138.81,0.1]
[1763392613499,4.71,138.85,138.81,0.1]
[1763392613817,4.48,138.85,138.81,0.1]
[1763392614297,5.85091857,138.93,138.81,0.1]
[1763392614298,12.68143114,138.86,138.81,12.78143114]
[1763392614482,12.68143114,138.86,138.82,12.68143114]
[1763392614819,17.16143114,138.88,138.83,12.68143114]
[1763392614997,4.48,138.88,138.84,12.68143114]
[1763392615321,0.23,138.93,138.86,12.68143114]
[1763392615497,0.23,138.96,138.87,0.7]
[1763392615685,4.48,138.95,138.87,0.7]
[1763392616204,12.68143114,138.93,138.88,12.68143114]
[1763392616416,12.68143114,138.92,138.87,13.38143114]
[1763392616582,12.68143114,138.93,138.87,0.7]
[1763392616782,12.68143114,138.94,138.88,0.7]
[1763392616991,12.68143114,138.92,138.85,0.7]
[1763392617210,4.48,138.95,138.85,0.7]
[1763392617211,12.68143114,138.91,138.85,0.7]
[1763392617392,12.68143114,138.9,138.85,13.38143114]
[1763392617710,4.48,138.91,138.88,12.68143114]
[1763392618084,17.16143114,138.91,138.87,12.68143114]
[1763392618393,4.48,138.91,138.88,12.68143114]
[1763392618699,12.68143114,138.93,138.85,0.7]
[1763392619123,12.68143114,138.94,138.85,0.7]
[1763392619807,4.48,138.95,138.9,12.68143114]
[1763392619982,17.16143114,138.95,138.9,12.68143114]
[1763392620181,0.23,139.04,138.93,12.68143114]
[1763392620382,12.68143114,138.98,138.88,4.48]
[1763392620692,12.68143114,138.93,138.88,12.68143114]
[1763392620883,12.68143114,138.91,138.86,12.68143114]
[1763392621078,4.48,138.93,138.87,0.7]
[1763392621307,4.48,138.93,138.91,12.68143114]
[1763392621488,4.48,138.93,138.89,12.68143114]
[1763392621688,12.68143114,138.93,138.88,12.68143114]
[1763392621912,12.68143114,138.89,138.81,0.8]
[1763392622129,12.68143114,138.85,138.81,0.1]
[1763392622281,12.68143114,138.83,138.81,0.1]
[1763392622614,12.68143114,138.83,138.72,4.48]
[1763392622615,12.68143114,138.82,138.75,12.68143114]
[1763392622782,12.68143114,138.79,138.72,0.7]
[1763392622980,12.68143114,138.77,138.72,0.7]
[1763392623182,22.60096,138.81,138.69,3.76509472]
[1763392623183,12.68143114,138.74,138.69,3.76509472]
[1763392623523,9.78882769,138.74,138.62,0.7]
[1763392623816,0.13,138.73,138.65,12.68143114]
[1763392624019,12.68143114,138.69,138.64,12.68143114]
[1763392624181,4.48,138.7,138.62,0.7]
[1763392624381,12.68143114,138.65,138.6,14.61736202]
[1763392624580,4.48,138.69,138.67,0.1]
[1763392624818,20.8774413,138.68,138.67,0.1]
[1763392624998,9.78882769,138.67,138.6,1.93593088]
[1763392625312,10.95861361,138.63,138.6,1.93593088]
[1763392625512,10.95861361,138.62,138.6,1.93593088]
[1763392625714,10.95861361,138.61,138.6,1.90593088]
[1763392625944,7.21146552,138.67,138.6,1.90593088]
[1763392625945,50.0,138.73,138.6,1.90593088]
[1763392626139,10.95861361,138.64,138.6,1.90593088]
[1763392626446,10.95861361,138.62,138.6,1.90593088]
[1763392626649,10.95861361,138.61,138.6,1.90593088]
[1763392626804,20.7474413,138.61,138.6,1.90593088]
[1763392627005,10.95861361,138.61,138.6,1.90593088]
[1763392627202,20.7474413,138.61,138.6,1.90593088]
[1763392627539,27.90978769,138.57,138.48,10.95861361]
[1763392627701,29.72348731,138.65,138.46,0.69]
[1763392627702,4.48,138.56,138.46,0.69]
[1763392627902,50.0,138.66,138.46,0.69]
[1763392627903,18.12096,138.62,138.55,10.95861361]
[1763392628110,10.95861361,138.59,138.54,10.95861361]
[1763392628336,10.95861361,138.57,138.47,0.69]
[1763392628637,10.95861361,138.56,138.47,0.69]
[1763392628815,10.95861361,138.56,138.48,10.95861361]
[1763392628816,4.48,138.55,138.48,10.95861361]
[1763392629019,10.95861361,138.51,138.44,0.69]
[1763392629322,4.48,138.5,138.45,10.95861361]
[1763392629502,3.98,138.5,138.46,10.95861361]
[1763392629703,18.12096,138.55,138.49,10.95861361]
[1763392629908,4.48,138.57,138.53,10.95861361]
[1763392630103,2.0,138.66,138.51,10.95861361]
[1763392630104,10.95861361,138.56,138.51,10.95861361]
[1763392630452,10.95861361,138.52,138.46,11.64861361]
[1763392630614,4.48,138.52,138.47,10.95861361]
[1763392630811,4.48,138.52,138.49,10.95861361]
[1763392631014,15.43861361,138.52,138.47,10.95861361]
[1763392631212,15.43861361,138.52,138.38,0.72264778]
[1763392631213,10.95861361,138.5,138.45,10.95861361]
[1763392631544,4.48,138.52,138.42,10.95861361]
[1763392631747,10.95861361,138.49,138.44,10.95861361]
[1763392631913,4.48,138.52,138.46,10.95861361]
[1763392632109,4.48,138.52,138.4,18.12096]
[1763392632110,10.95861361,138.51,138.4,18.12096]
[1763392632308,10.95861361,138.49,138.41,0.69]
[1763392632527,10.95861361,138.48,138.44,10.95861361]
[1763392632738,10.95861361,138.48,138.43,10.95861361]
[1763392632944,10.95861361,138.47,138.41,0.69]
[1763392633110,15.43861361,138.46,138.41,10.95861361]
[1763392633328,18.12096,138.51,138.43,10.95861361]
[1763392633532,4.48,138.5,138.42,0.69]
[1763392633856,4.48,138.5,138.42,11.64861361]
[1763392634028,4.48,138.5,138.45,10.95861361]
[1763392634221,10.95861361,138.51,138.46,0.69]
[1763392634456,10.95861361,138.48,138.43,10.95861361]
[1763392634656,15.43861361,138.48,138.43,10.95861361]
[1763392634956,10.95861361,138.45,138.39,0.69]
[1763392635165,4.48,138.48,138.4,10.95861361]
[1763392635462,4.48,138.48,138.44,10.95861361]
[1763392635626,10.95861361,138.47,138.42,10.95861361]
[1763392635831,4.48,138.48,138.39,0.69]
[1763392635832,15.43861361,138.48,138.43,10.95861361]
[1763392636036,10.95861361,138.47,138.42,10.95861361]
[1763392636355,4.48,138.48,138.39,0.69]
[1763392636559,10.95861361,138.47,138.42,10.95861361]
[1763392636867,4.48,138.48,138.41,10.95861361]
[1763392637048,10.95861361,138.45,138.4,10.95861361]
[1763392637337,4.48,138.48,138.41,10.95861361]
[1763392637655,10.95861361,138.46,138.41,10.95861361]
[1763392637959,4.48,138.48,138.4,0.71]
[1763392637960,10.95861361,138.45,138.4,0.71]
[1763392638161,10.95861361,138.45,138.4,11.66861361]
[1763392638658,10.95861361,138.44,138.39,10.95861361]
[1763392638863,10.95861361,138.44,138.37,0.71]
[1763392639063,4.5,138.43,138.37,0.71]
[1763392639241,10.95861361,138.39,138.36,3.77108007]
[1763392639439,4.5,138.38,138.31,1.93593088]
[1763392639647,4.5,138.38,138.34,10.95861361]
[1763392639859,10.95861361,138.42,138.37,10.95861361]
[1763392640365,10.95861361,138.43,138.38,11.66861361]
[1763392640538,4.5,138.45,138.38,11.66861361]
[1763392640855,4.5,138.5,138.44,7.25479894]
[1763392641062,7.21500721,138.6,138.46,7.25479894]
[1763392641243,17.34,138.61,138.47,0.71]
[1763392641433,4.5,138.6,138.47,0.71]
[1763392641764,7.25479894,138.52,138.47,7.96479894]
[1763392641931,4.5,138.6,138.49,7.25479894]
[1763392644843,10.98298775,138.61,138.55,11.69298775]
[1763392645129,10.98298775,138.59,138.55,0.71]
[1763392645361,4.5,138.63,138.48,18.12096]
[1763392645362,10.98298775,138.58,138.52,11.69298775]
[1763392645545,10.98298775,138.57,138.52,0.71]
[1763392645862,10.98298775,138.58,138.53,0.71]
[1763392646161,4.5,138.63,138.54,10.98298775]
[1763392646358,10.98298775,138.59,138.53,0.71]
[1763392646560,10.98298775,138.57,138.51,11.69298775]
[1763392646762,9.78882769,138.62,138.48,0.71]
[1763392646763,10.98298775,138.53,138.48,0.71]
[1763392646927,14.28882769,138.58,138.48,0.71]
[1763392647132,10.98298775,138.52,138.48,0.71]
[1763392647361,10.98298775,138.53,138.48,0.71]
[1763392647557,10.98298775,138.49,138.45,0.71]
[1763392647735,4.5,138.54,138.45,0.71]
[1763392648060,10.98298775,138.5,138.45,0.71]
[1763392648474,10.98298775,138.47,138.42,0.71]
[1763392648866,10.98298775,138.45,138.4,0.71]
[1763392649169,10.98298775,138.47,138.41,10.98298775]
[1763392649368,10.98298775,138.51,138.45,10.98298775]
[1763392649580,10.98298775,138.51,138.42,0.71]
[1763392649946,10.98298775,138.51,138.45,10.98298775]
[1763392650148,10.98298775,138.51,138.44,10.98298775]
[1763392650461,4.5,138.53,138.45,10.98298775]
[1763392650657,10.98298775,138.51,138.45,10.98298775]
[1763392650863,10.98298775,138.49,138.42,0.71]
[1763392651487,10.98298775,138.49,138.43,10.98298775]
[1763392651699,10.98298775,138.45,138.39,0.71]
[1763392651989,10.98298775,138.43,138.39,0.71]
[1763392652477,9.78882769,138.47,138.39,0.71]
[1763392652681,10.98298775,138.44,138.39,0.71]
[1763392652989,10.98298775,138.42,138.39,0.71]
[1763392653157,9.78882769,138.47,138.39,0.71]
[1763392653360,10.98298775,138.41,138.33,4.5]
[1763392653582,18.12096,138.44,138.35,0.21]
[1763392653757,10.98298775,138.4,138.3,0.1]
[1763392653954,10.98298775,138.4,138.34,10.98298775]
[1763392654294,15.48298775,138.43,138.32,9.78882769]
[1763392654771,4.5,138.47,138.4,10.98298775]
[1763392654973,10.98298775,138.46,138.4,10.98298775]
[1763392655169,10.98298775,138.43,138.31,2.6589444]
[1763392655373,0.5,138.46,138.31,2.6589444]
[1763392655374,0.5,138.46,138.36,10.98298775]
[1763392655573,10.98298775,138.43,138.37,10.98298775]
[1763392656080,10.98298775,138.42,138.38,0.71]
[1763392656283,10.98298775,138.42,138.31,11.72475857]
[1763392656593,10.98298775,138.4,138.35,0.7]
[1763392656964,0.5,138.44,138.35,0.7]
[1763392657169,10.98298775,138.4,138.35,0.7]
[1763392657368,10.98298775,138.42,138.36,10.98298775]
[1763392657584,10.98298775,138.43,138.37,11.68298775]
[1763392657809,18.12096,138.44,138.37,0.7]
[1763392657810,10.98298775,138.42,138.37,0.7]
[1763392657976,10.98298775,138.41,138.37,0.7]
[1763392658174,4.5,138.47,138.37,11.68298775]
[1763392658385,18.12096,138.46,138.37,0.7]
[1763392658574,10.98298775,138.42,138.36,11.68298775]
[1763392658774,10.98298775,138.42,138.36,0.7]
[1763392659004,18.12096,138.46,138.37,0.7]
[1763392659189,10.98298775,138.43,138.37,11.68298775]
[1763392659384,18.12096,138.46,138.37,11.68298775]
[1763392659694,0.5,138.51,138.4,10.98298775]
[1763392659906,10.98298775,138.48,138.42,10.98298775]
[1763392660075,4.5,138.5,138.33,18.12096]
[1763392660076,0.5,138.47,138.37,0.7]
[1763392660281,10.98298775,138.43,138.37,0.7]
[1763392660484,10.98298775,138.43,138.37,11.68298775]
[1763392660818,18.62096,138.47,138.37,11.68298775]
[1763392660819,10.98298775,138.42,138.37,0.7]
[1763392660976,10.98298775,138.44,138.38,0.7]
[1763392661184,10.98298775,138.42,138.38,0.7]
[1763392661392,0.5,138.48,138.39,10.98298775]
[1763392661595,10.98298775,138.49,138.43,10.98298775]
[1763392661806,10.98298775,138.5,138.4,0.7]
[1763392662013,10.98298775,138.48,138.4,0.7]
[1763392662220,10.98298775,138.47,138.4,0.7]
[1763392662516,10.98298775,138.49,138.43,10.98298775]
[1763392662691,10.98298775,138.5,138.44,10.98298775]
[1763392662906,0.5,138.58,138.47,10.98298775]
[1763392663205,10.98298775,138.55,138.48,10.98298775]
[1763392663417,10.98298775,138.51,138.41,0.7]
[1763392663618,0.5,138.5,138.42,0.7]
[1763392663834,0.5,138.5,138.3,11.08298775]
[1763392663835,10.98298775,138.43,138.35,0.7]
[1763392663999,18.12096,138.41,138.3,4.6]
[1763392664199,18.12096,138.41,138.32,11.68298775]
[1763392664402,10.98298775,138.38,138.32,11.68298775]
[1763392664615,10.98298775,138.35,138.32,0.7]
[1763392664817,7.26818803,138.34,138.3,0.1]
[1763392665211,7.26818803,138.33,138.3,0.1]
[1763392665408,9.78882769,138.37,138.3,0.1]
[1763392665409,4.5,138.34,138.3,0.1]
[1763392665617,7.26818803,138.32,138.3,0.1]
[1763392665825,42.44616375,138.32,138.31,1.83593088]
[1763392666021,42.44616375,138.32,138.24,250.0]
[1763392666022,18.12096,138.28,138.24,250.0]
[1763392666214,22.62096,138.28,138.24,249.9]
[1763392666416,25.38914803,138.25,138.24,249.9]
[1763392666730,42.44616375,138.25,138.24,249.8]
[1763392666910,29.15038728,138.25,138.24,249.7]
[1763392667227,38.93921497,138.25,138.24,179.85863244]
[1763392667630,60.61921497,138.25,138.24,179.85863244]
[1763392667834,67.85248802,138.25,138.24,179.85863244]
[1763392668038,69.85248802,138.25,138.24,156.08863244]
[1763392668221,69.85248802,138.25,138.24,77.37416036]
[1763392668425,36.35245978,138.24,138.04,0.7]
[1763392668637,11.02942728,138.08,138.04,0.7]
[1763392668804,11.02942728,138.07,138.04,0.7]
[1763392669008,11.02942728,138.08,138.04,0.7]
[1763392669209,11.02942728,138.06,138.02,1.93593088]
[1763392669416,32.40978769,138.11,138.03,0.7]
[1763392669614,18.12096,138.08,138.03,0.7]
[1763392669838,11.02942728,138.05,138.02,1.93593088]
[1763392670134,18.12096,138.09,138.02,2.63593088]
[1763392670135,11.02942728,138.06,138.02,2.63593088]
[1763392670428,11.02942728,138.05,138.02,2.63593088]
[1763392670640,18.12096,138.08,138.03,0.7]
[1763392670814,4.5,138.11,138.02,1.93593088]
[1763392670815,18.12096,138.09,138.02,1.93593088]
[1763392671146,11.02942728,138.03,138.02,1.93593088]
[1763392671322,63.02942728,138.15,138.03,0.7]
[1763392671518,11.02942728,138.06,138.03,0.7]
[1763392671709,4.5,138.09,138.03,0.7]
[1763392671903,11.02942728,138.06,138.03,0.7]
[1763392672110,29.15038728,138.04,138.02,1.93593088]
[1763392672309,22.62096,138.03,138.02,1.93593088]
[1763392672824,33.65038728,138.03,138.02,1.93593088]
[1763392673012,29.15038728,138.03,138.02,1.93593088]
[1763392673210,86.40216403,138.13,138.02,1.93593088]
[1763392673211,4.5,138.15,138.02,13.66535816]
[1763392673408,4.5,138.15,138.05,11.02942728]
[1763392673613,11.02942728,138.12,138.03,0.7]
[1763392673813,11.02942728,138.14,138.09,11.02942728]
[1763392674040,4.5,138.15,138.03,0.7]
[1763392674343,4.5,138.19,138.12,11.02942728]
[1763392674540,11.02942728,138.15,138.02,1.93593088]
[1763392674715,11.02942728,138.13,138.08,11.02942728]
[1763392674914,4.5,138.19,138.09,0.7]
[1763392675138,11.02942728,138.17,138.09,0.7]
[1763392675335,4.5,138.21,138.13,11.02942728]
[1763392675546,11.02942728,138.2,138.15,11.02942728]
[1763392676017,22.62096,138.21,138.15,11.02942728]
[1763392676018,4.5,138.21,138.15,11.02942728]
[1763392676217,15.52942728,138.21,138.16,11.72942728]
[1763392676413,11.02942728,138.2,138.16,0.7]
[1763392676667,11.02942728,138.19,138.14,11.02942728]
[1763392677030,4.5,138.21,138.13,11.02942728]
[1763392677233,18.12096,138.2,138.13,11.02942728]
[1763392677449,11.02942728,138.19,138.14,11.72942728]
[1763392677664,11.02942728,138.19,138.14,0.7]
[1763392677873,11.02942728,138.19,138.15,0.7]
[1763392678031,15.52942728,138.21,138.16,11.02942728]
[1763392678399,4.5,138.25,138.18,11.02942728]
[1763392678535,11.02942728,138.24,138.19,11.02942728]
[1763392678862,11.02942728,138.24,138.18,0.7]
[1763392678863,11.02942728,138.23,138.18,11.72942728]
[1763392679056,11.02942728,138.21,138.16,11.02942728]
[1763392679366,9.78882769,138.24,138.14,11.02942728]
[1763392679546,9.78882769,138.2,138.08,0.7]
[1763392679740,18.12096,138.17,138.09,0.7]
[1763392679940,11.02942728,138.13,138.09,0.7]
[1763392680141,11.02942728,138.12,138.07,11.02942728]
[1763392680329,15.52942728,138.14,138.1,11.02942728]
[1763392680531,4.5,138.14,138.08,11.02942728]
[1763392680832,11.02942728,138.2,138.08,4.5]
[1763392681038,11.02942728,138.17,138.12,11.02942728]
[1763392681370,22.62096,138.24,138.13,0.7]
[1763392681549,11.02942728,138.21,138.17,11.02942728]
[1763392681734,4.5,138.24,138.19,11.02942728]
[1763392681931,72.32640903,138.37,138.1,18.12096]
[1763392681932,5.90128207,138.34,138.22,11.02942728]
[1763392682161,4.52,138.35,138.27,11.02942728]
[1763392682367,11.02942728,138.32,138.28,11.02942728]
[1763392682662,11.02942728,138.32,138.27,0.7]
[1763392682864,4.52,138.36,138.27,0.7]
[1763392683076,4.52,138.36,138.3,11.02942728]
[1763392683267,4.52,138.36,138.27,0.7]
[1763392683268,11.02942728,138.36,138.31,11.02942728]
[1763392683468,11.02942728,138.34,138.29,0.7]
[1763392683674,11.02942728,138.35,138.3,11.02942728]
[1763392683904,11.02942728,138.35,138.31,0.7]
[1763392684089,11.02942728,138.38,138.31,0.7]
[1763392684261,11.02942728,138.38,138.33,11.02942728]
[1763392684458,11.02942728,138.42,138.32,9.78882769]
[1763392684689,11.02942728,138.39,138.31,0.7]
[1763392684897,11.02942728,138.32,138.27,0.7]
[1763392685197,18.12096,138.36,138.27,0.7]
[1763392685198,11.02942728,138.35,138.27,0.7]
[1763392685379,11.02942728,138.34,138.29,11.02942728]
[1763392685576,11.02942728,138.3,138.23,0.7]
[1763392685918,18.12096,138.29,138.23,0.7]
[1763392686062,18.12096,138.31,138.23,0.7]
[1763392686394,18.12096,138.31,138.24,11.02942728]
[1763392686584,4.52,138.33,138.26,11.02942728]
[1763392686766,12.78086807,138.31,138.26,12.78086807]
[1763392686962,12.78086807,138.27,138.2,0.68]
[1763392687168,22.64096,138.27,138.2,0.68]
[1763392687466,32.42978769,138.27,138.17,0.68]
[1763392687691,12.78086807,138.21,138.17,0.68]
[1763392687863,17.30086807,138.22,138.17,13.46086807]
[1763392688065,2.0,138.35,138.21,12.78086807]
[1763392688378,12.78086807,138.25,138.19,12.78086807]
[1763392688583,12.78086807,138.24,138.19,12.78086807]
[1763392688810,12.78086807,138.25,138.19,12.78086807]
[1763392689099,22.64096,138.26,138.21,12.78086807]
[1763392689268,12.78086807,138.25,138.2,13.46086807]
[1763392689463,22.64096,138.26,138.2,12.78086807]
[1763392689663,22.64096,138.26,138.2,13.46086807]
[1763392689664,35.42182807,138.26,138.2,13.46086807]
[1763392689878,12.78086807,138.25,138.19,13.46086807]
[1763392690080,12.78086807,138.25,138.2,12.78086807]
[1763392690277,12.78086807,138.24,138.18,12.78086807]
[1763392690607,22.64096,138.26,138.2,12.78086807]
[1763392690895,5.80503466,138.35,138.23,12.78086807]
[1763392691100,12.78086807,138.29,138.24,12.78086807]
[1763392691415,4.52,138.34,138.15,0.68]
[1763392691416,12.78086807,138.25,138.15,0.68]
[1763392691569,12.78086807,138.22,138.16,12.78086807]
[1763392691770,18.12096,138.23,138.15,13.46086807]
[1763392692006,22.64096,138.24,138.17,12.78086807]
[1763392692388,4.52,138.24,138.19,12.78086807]
[1763392692573,12.78086807,138.21,138.16,12.78086807]
[1763392692772,12.78086807,138.21,138.13,0.68]
[1763392692773,12.78086807,138.21,138.15,12.78086807]
[1763392693098,12.78086807,138.21,138.13,0.68]
[1763392693099,12.78086807,138.19,138.13,0.68]
[1763392693270,17.30086807,138.18,138.12,12.78086807]
[1763392693474,4.52,138.18,138.15,12.78086807]
[1763392693798,4.52,138.27,138.17,12.78086807]
[1763392693986,12.78086807,138.25,138.19,12.78086807]
[1763392694190,12.78086807,138.23,138.18,12.78086807]
[1763392694514,12.78086807,138.25,138.2,12.78086807]
[1763392694799,30.90182807,138.25,138.2,12.78086807]
[1763392695301,18.12096,138.25,138.21,12.78086807]
[1763392695466,35.42182807,138.26,138.21,12.78086807]
[1763392695866,12.78086807,138.29,138.24,12.78086807]
[1763392696097,30.90182807,138.29,138.23,12.78086807]
[1763392696285,30.90182807,138.29,138.22,0.68]
[1763392696286,12.78086807,138.29,138.22,0.68]
[1763392696494,12.78086807,138.27,138.2,0.68]
[1763392696682,12.78086807,138.26,138.21,12.78086807]
[1763392696878,30.90182807,138.25,138.2,12.78086807]
[1763392697294,12.78086807,138.23,138.17,0.68]
[1763392697611,18.12096,138.22,138.18,12.78086807]
[1763392697783,18.12096,138.22,138.17,13.46086807]
[1763392697980,39.80096,138.22,138.16,12.78086807]
[1763392698179,12.78086807,138.2,138.08,5.24]
[1763392698412,35.42182807,138.21,138.08,5.96421784]
[1763392698619,22.64096,138.21,138.09,0.72]
[1763392698911,12.78086807,138.19,138.13,12.78086807]
[1763392699211,4.52,138.21,138.17,12.78086807]
[1763392699512,12.78086807,138.23,138.18,13.50086807]
[1763392699712,4.52,138.26,138.2,12.78086807]
[1763392700015,4.52,138.26,138.15,0.72]
[1763392700016,18.12096,138.22,138.15,0.72]
[1763392700315,22.64096,138.26,138.19,12.78086807]
[1763392700805,12.78086807,138.24,138.19,12.78086807]
[1763392701181,18.12096,138.24,138.2,0.72]
[1763392701380,12.78086807,138.23,138.1,0.72]
[1763392701605,4.52,138.26,138.12,9.78882769]
[1763392701814,30.90182807,138.23,138.12,9.78882769]
[1763392701985,12.78086807,138.21,138.16,12.78086807]
[1763392702180,4.52,138.26,138.2,12.78086807]
[1763392702511,4.52,138.31,138.21,0.72]
[1763392702684,18.12096,138.29,138.25,12.78086807]
[1763392703017,4.52,138.31,138.21,0.72]
[1763392703183,12.78086807,138.29,138.24,12.78086807]
[1763392703382,12.78086807,138.3,138.24,12.78086807]
[1763392703733,12.78086807,138.3,138.25,12.78086807]
[1763392703880,4.52,138.31,138.23,0.72]
[1763392703881,4.52,138.31,138.24,12.78086807]
[1763392704082,12.78086807,138.29,138.23,0.72]
[1763392704302,12.78086807,138.28,138.22,12.78086807]
[1763392704509,12.78086807,138.29,138.24,12.78086807]
[1763392704698,9.78882769,138.41,138.27,12.78086807]
[1763392704900,12.78086807,138.35,138.3,12.78086807]
[1763392705105,12.78086807,138.35,138.3,0.72]
[1763392705413,4.52,138.36,138.27,0.72]
[1763392705414,30.90182807,138.33,138.27,0.72]
[1763392705587,12.78086807,138.32,138.27,13.50086807]
[1763392705787,30.90182807,138.33,138.28,12.78086807]
[1763392706312,12.78086807,138.35,138.3,12.78086807]
[1763392706515,21.68,138.44,138.32,12.78086807]
[1763392706719,21.68,138.44,138.31,0.72]
[1763392706720,12.78086807,138.37,138.31,0.72]
[1763392707018,12.78086807,138.36,138.31,13.50086807]
[1763392707382,4.52,138.37,138.32,0.72]
[1763392707620,17.30086807,138.37,138.32,0.72]
[1763392707815,17.30086807,138.37,138.31,12.78086807]
[1763392707816,12.78086807,138.36,138.31,12.78086807]
[1763392708119,12.78086807,138.36,138.29,13.50086807]
[1763392708120,12.78086807,138.35,138.29,13.50086807]
[1763392708287,18.12096,138.36,138.29,0.72]
[1763392708486,12.78086807,138.34,138.29,12.78086807]
[1763392708686,18.12096,138.36,138.3,13.50086807]
[1763392708910,18.12096,138.36,138.31,12.78086807]
[1763392709095,30.90182807,138.36,138.31,13.50086807]
[1763392709411,30.90182807,138.36,138.31,12.78086807]
[1763392709626,17.30086807,138.37,138.32,13.50086807]
[1763392709789,12.78086807,138.36,138.27,0.72]
[1763392709989,12.78086807,138.36,138.31,12.78086807]
[1763392710294,4.52,138.37,138.3,12.78086807]
[1763392710295,12.78086807,138.35,138.3,12.78086807]
[1763392710689,12.78086807,138.34,138.3,0.72]
[1763392710922,4.52,138.37,138.3,0.72]
[1763392711222,12.78086807,138.33,138.28,12.78086807]
[1763392711429,18.12096,138.28,138.07,0.02]
[1763392711586,12.78086807,138.22,138.12,0.72]
[1763392711790,4.52,138.23,138.12,0.72]
[1763392711986,12.78086807,138.21,138.16,12.78086807]
[1763392712190,12.78086807,138.19,138.12,0.72]
[1763392712528,4.52,138.23,138.15,12.78086807]
[1763392712717,12.78086807,138.2,138.16,0.72]
[1763392712907,12.78086807,138.21,138.16,0.72]
[1763392713098,5.890603,138.29,138.18,12.78086807]
[1763392713299,12.78086807,138.22,138.16,13.50086807]
[1763392713503,12.78086807,138.2,138.16,0.72]
[1763392713703,12.78086807,138.21,138.17,0.72]
[1763392714030,4.52,138.23,138.17,0.72]
[1763392714196,12.78086807,138.23,138.18,12.78086807]
[1763392714613,12.78086807,138.22,138.11,4.52]
[1763392714828,4.52,138.25,138.16,13.50086807]
[1763392714829,12.78086807,138.21,138.16,13.50086807]
[1763392715033,12.78086807,138.24,138.19,12.78086807]
[1763392715195,17.28086807,138.26,138.21,12.78086807]
[1763392715401,4.5,138.3,138.23,12.78086807]
[1763392715633,12.78086807,138.27,138.2,0.72]
[1763392715948,12.78086807,138.27,138.22,12.78086807]
[1763392716105,12.78086807,138.27,138.23,0.72]
[1763392716308,12.78086807,138.25,138.2,12.78086807]
[1763392716496,18.12096,138.29,138.21,0.66]
[1763392716497,12.78086807,138.24,138.21,0.66]
[1763392716698,12.78086807,138.22,138.18,0.66]
[1763392716912,4.5,138.25,138.15,12.78086807]
[1763392717123,4.5,138.25,138.08,0.66]
[1763392717124,12.78086807,138.17,138.08,0.66]
[1763392717325,12.78086807,138.13,138.08,0.66]
[1763392717530,12.78086807,138.11,138.08,0.66]